Cogmind - Beta 16 @@@ ROGUE MODE // 2025.10.31 @ 09:22:36 Player: Anonymous Bosch Result: Destroyed by X-72 Disruptor with Arc Projector Performance ------------- Evolutions (5) 2500 Regions Visited (12) 2400 Robots Destroyed (129) 645 Value Destroyed (6379) 6379 Prototype IDs (19) 380 Alien Tech Used (0) 0 Bonus (4273) 4273 TOTAL SCORE: 16577 Bonus ------- Triggered High Security 500 High Alert Combat Kills 798 Follower Combat Kills 1300 Entered Garrisons 400 Used RIF Installer 1000 Entered DSFs 500 Friendly Fire -225 Cogmind --------- Core Integrity 0/1000 Matter 243/300 Energy 85/100 System Corruption 9% Temperature Cool (0) Movement Core (50) Location -5/Factory Parts ------- > --- POWER (2) -------- (None) > --- PROPULSION (4) --- (None) > --- UTILITY (8) ------ Hacking Suite Relay Coupler [Brawler] (38) Relay Coupler [Sentry] (13) > --- WEAPON (3) ------- Power Maul > --- INVENTORY (5) ---- Advanced Heat Sink Dynamic Insulation System Heavy Gatling Laser Peak State ------------ > --- POWER ------------ Light Angular Momentum Engine Light Fission Core > --- PROPULSION ------- Flexi-carbon Leg Myomer Leg Cargo Legs > --- UTILITY ---------- Advanced Heat Sink Disposable Heat Sink Coolant Injector High-capacity Storage Unit Improved Utility Shielding Relay Coupler [NC] Relay Coupler [Sentry] Relay Coupler [Heavy] > --- WEAPON ----------- Heavy Plasma Cannon Heavy Plasma Cannon Heavy Plasma Cannon > --- INVENTORY -------- Light Angular Momentum Engine Carbon-fiber Leg Carbon-fiber Leg Carbon-fiber Leg Flexi-carbon Leg Improved Sensor Array Hacking Suite Authchip [R/Combat] Authchip [R/Combat] Relay Coupler [NC] Relay Coupler [Sentry] Relay Coupler [Demolisher] Relay Coupler [Hunter] Heavy Plasma Cannon Gauss Rifle Datajack Power Maul [Rating: 85] Favorites ----------- Power Cooled Ion Engine Engine Cooled Ion Engine Power Core Micro Fission Core Propulsion Carbon-fiber Leg Leg Carbon-fiber Leg Utility High-capacity Storage Unit Device Advanced Heat Sink Storage High-capacity Storage Unit Processor Visual Processing Unit Hackware Relay Coupler [NC] Protection Hardened Light Armor Plating Weapon Advanced Beam Rifle Energy Gun Advanced Beam Rifle Energy Cannon Heavy Plasma Cannon Ballistic Gun Gauss Rifle Ballistic Cannon Light Cannon Launcher Mini Grenade Launcher Special Weapon Mining Laser Impact Weapon Power Maul Special Melee Weapon Datajack Build | -11 -10 -10 -10 -8 -8 -8 -8 -6 -6 -5 -5 -5 ------- Run | Yrd Mat Min Sub Mat Sto Gar Rec Fac DSF Fac Gar Fac Slots Evolved 10 | . . . . 4 . . . 4 . 2 . . Power 1 | . . . . . . . . . . 1 . . Propulsion 2 | . . . . 1 . . . 1 . . . . Utility 6 | . . . . 2 . . . 3 . 1 . . Weapon 1 | . . . . 1 . . . . . . . . Parts Attached 137 | 5 14 13 4 16 8 5 3 2 8 10 38 11 Power 23 | . 2 3 . 3 2 . 2 . . 1 8 2 Engine 14 | . 2 3 . 1 2 . 2 . . 1 2 1 Core 9 | . . . . 2 . . . . . . 6 1 Reactor . | . . . . . . . . . . . . . Propulsion 27 | 2 3 4 1 1 1 . 1 1 1 3 8 1 Treads . | . . . . . . . . . . . . . Leg 27 | 2 3 4 1 1 1 . 1 1 1 3 8 1 Wheel . | . . . . . . . . . . . . . Hover . | . . . . . . . . . . . . . Flight . | . . . . . . . . . . . . . Utility 48 | 1 4 2 2 7 . 3 . 1 4 3 15 6 Device 16 | . 3 1 . 4 . 1 . . 1 1 3 2 Storage 3 | 1 1 . . 1 . . . . . . . . Processor 2 | . . . 1 1 . . . . . . . . Hackware 17 | . . . . . . 1 . 1 1 . 10 4 Protection 10 | . . 1 1 1 . 1 . . 2 2 2 . Artifact . | . . . . . . . . . . . . . Weapon 39 | 2 5 4 1 5 5 2 . . 3 3 7 2 Energy Gun 11 | 1 . 2 1 2 1 . . . . 1 2 1 Energy Cannon 8 | . 1 . . . 1 . . . 1 2 3 . Ballistic Gun 9 | 1 1 . . 2 2 . . . 1 . 1 1 Ballistic Cannon 2 | . 1 . . 1 . . . . . . . . Launcher 3 | . . 2 . . . . . . 1 . . . Special Weapon 3 | . 1 . . . . 1 . . . . 1 . Impact Weapon 2 | . 1 . . . . 1 . . . . . . Slashing Weapon . | . . . . . . . . . . . . . Piercing Weapon . | . . . . . . . . . . . . . Special Melee Weapon 1 | . . . . . 1 . . . . . . . Unidentified Prototypes 7 | . 1 1 . 3 1 . . . . . . 1 Corrupted Parts 1 | . . . . . . . . . . . 1 . System Corruption 3 | . . . . . . . . . . . 3 . Parts Lost 56 | . 1 7 . 4 . 3 . . 3 8 13 17 Power 10 | . . 1 . 3 . . . . . 1 2 3 Propulsion 13 | . 1 2 . . . . . . . 1 6 3 Utility 13 | . . 1 . . . 2 . . 1 3 2 4 Weapon 20 | . . 3 . 1 . 1 . . 2 3 3 7 Highest Loss Streak 12 | . 1 4 . 2 . 2 . . 2 4 6 12 To Critical Strikes 1 | . . . . . . . . . . . . 1 Average Backups 16 | 5 8 9 9 14 19 19 19 17 18 17 19 15 Power 2 | 1 . . 1 2 3 3 2 2 2 1 2 2 Propulsion 1 | 2 2 1 1 . 1 2 2 1 1 2 1 . Utility 7 | . 1 3 1 5 8 9 10 9 10 8 10 9 Weapon 3 | . 2 3 3 5 6 4 3 4 3 2 3 2 Tool/Special . | . . . . . . . . . . . . . Unused Backups 35 | 2 5 1 2 1 5 4 1 . 2 1 6 5 Power 7 | . . . 1 1 2 . . . . . 3 . Propulsion 8 | 2 3 . 1 . 1 . . . . 1 . . Utility 19 | . 1 1 . . 2 4 1 . 2 . 3 5 Weapon 1 | . 1 . . . . . . . . . . . Tool/Special . | . . . . . . . . . . . . . Average Slot Usage (%) 94 | . 97 96 97 88 90 90 90 84 91 90 97 82 Engine 7 | . 12 13 13 5 4 8 9 6 6 10 4 . Core 2 | . . . . 1 3 . . . . . 5 8 Leg 21 | . 28 26 24 15 15 17 18 20 20 16 22 14 Device 9 | . 13 4 10 13 12 9 9 13 7 15 7 2 Storage 8 | . 14 14 13 7 8 8 9 6 6 5 5 4 Processor 1 | . . . 2 10 8 3 . . . . . . Hackware 11 | . . . . . . . 9 10 19 11 27 34 Protection 6 | . . 9 4 7 11 14 9 6 12 11 4 . Energy Gun 6 | . 5 . . 1 14 18 19 13 10 9 1 2 Energy Cannon 3 | . 2 6 1 5 . . . . 3 . 5 . Ballistic Gun 3 | . 8 . . 2 7 5 . . . 2 3 3 Ballistic Cannon 1 | . 7 2 . 5 . . . . . . . . Launcher 3 | . . 15 24 3 . . . . . . . . Special Weapon 1 | . 2 . . 3 . . . . 1 . . 1 Impact Weapon 1 | . . . . . . . . . . 2 3 2 Peak Build Rating 85 | 6 12 19 39 51 54 56 58 62 69 83 85 80 Average Rating 49 | 4 8 12 20 44 50 49 52 61 64 79 75 63 On Entrance 43 | . 6 10 18 39 50 50 51 54 62 68 80 79 Avg Prop Armor Cover (%) 11 | . . . . . . . . . . . 11 . Naked Turns . | . . . . . . . . . . . . . Heaviest Build 101 | 8 23 23 24 65 68 66 63 63 73 101 92 83 Greatest Support 100 | 20 20 20 55 71 68 68 72 85 85 90 100 63 Greatest Overweight (x) 3 | . 1 2 1 . 1 . . . . 1 1 3 Average Overweight (x) . | . . . . . . . . . . . . . Largest Inventory Capacity 20 | 8 10 10 10 20 20 20 20 20 20 20 20 20 Average Capacity 16 | 7 9 10 10 19 20 20 20 20 20 20 20 17 Most Carried 20 | 8 10 10 10 20 20 20 20 19 20 20 20 20 Average Carried 16 | 5 8 9 9 14 19 19 19 16 19 18 19 15 Final Capacity 20 | 8 10 10 10 20 20 20 20 20 20 20 20 5 Final Carried 20 | 8 10 10 7 20 20 20 20 16 20 19 19 3 Class Distribution -------------------- 33% | Bothacker-Mutant 23% | Mutant 8% | Scavenger-Mutant 7% | Bothacker-Tank 6% | Skirmisher 4% | Scavenger-Tank 4% | Bomber 3% | Commander-Bomber Dominant Class ---------------- Mutant | -10/Materials Mutant | -10/Mines Scavenger-Mutant | -10/Subcaves Skirmisher | -8/Materials Skirmisher | -8/Storage Bomber | -8/Garrison Bothacker-Mutant | -8/Recycling Bothacker-Mutant | -6/Factory Bothacker-Tank | -6/DSF Bothacker-Mutant | -5/Factory Bothacker-Mutant | -5/Garrison Bothacker-Mutant | -5/Factory Resources | -11 -10 -10 -10 -8 -8 -8 -8 -6 -6 -5 -5 -5 ----------- Run | Yrd Mat Min Sub Mat Sto Gar Rec Fac DSF Fac Gar Fac Matter Collected 4238 | 262 389 455 92 539 330 379 208 . 214 214 951 205 Remotely . | . . . . . . . . . . . . . Salvage Created 4911 | 88 470 209 18 525 422 836 383 . 270 514 1054 122 Parts 244 | 5 31 10 . 40 22 35 21 . 20 16 39 5 Haulers Intercepted 5 | . 1 . . 3 1 . . . . . . . Recyclers Shooed 4 | . 1 1 . . 1 . . . . 1 . . Parts Field Recycled 3 | . . . . 3 . . . . . . . . Retrieved Matter 11 | . . . . 11 . . . . . . . . Parts Self-Destructed 3 | . . . 3 . . . . . . . . . Prevented . | . . . . . . . . . . . . . Parts Restored . | . . . . . . . . . . . . . Kills | -11 -10 -10 -10 -8 -8 -8 -8 -6 -6 -5 -5 -5 ------- Run | Yrd Mat Min Sub Mat Sto Gar Rec Fac DSF Fac Gar Fac Combat Hostiles Destroyed 112 | . 12 13 1 15 6 21 8 . 8 8 18 2 Melee 2 | . . . . . . . . . . 1 . 1 Guns 61 | . 8 2 . 3 5 17 8 . 6 7 4 1 Cannons 26 | . 4 4 . 5 . . . . 1 . 12 . AOE 20 | . . 7 1 7 . 4 . . 1 . . . Classes Destroyed 20 | 2 5 3 1 1 1 2 . . 2 1 2 . Worker 2 | . . 2 . . . . . . . . . . Builder 1 | . . . . . . . . . . 1 . . Tunneler 3 | 1 . 1 . 1 . . . . . . . . Hauler 5 | . 1 . . 3 1 . . . . . . . Recycler 4 | 1 . 1 . 1 1 . . . . . . . Operator 1 | . 1 . . . . . . . . . . . Watcher 3 | . 3 . . . . . . . . . . . Swarmer 28 | . 4 3 . 7 . 4 . . 6 . 4 . Grunt 48 | . 8 2 . 5 3 11 1 . . 8 9 1 Brawler 2 | . . . . . . 2 . . . . . . Sentry 10 | . . . . 3 2 2 2 . . . 1 . Demolisher 2 | . . 2 . . . . . . . . . . Specialist 1 | . . . . . . . . . 1 . . . Hunter 1 | . . . . . 1 . . . . . . . Programmer 8 | . . . . . . 2 1 . . . 4 1 Heavy 1 | . . . . . . . . . 1 . . . Behemoth 1 | . . . . . . . . . . . 1 . Executioner 1 | . . . . . . . . . . . 1 . Subdweller 5 | . . . 1 . . . 4 . . . . . Assembled 6 | . . 6 . . . . . . . . . . Guerrilla 1 | . . . . . . . . . . . 1 . Infiltrator 1 | . . . . . . . . . . . 1 . Best Kill Streak 8 | 1 3 4 1 6 3 8 3 . 3 4 5 1 Combat Bots Only 8 | . 3 3 1 4 2 8 3 . 3 4 5 1 Max Kills in Single Turn 4 | 1 1 1 1 3 1 4 1 . 1 1 3 1 Gunslinging . | . . . . . . . . . . . . . Exploded 4 | . . 1 1 3 . 4 . . 1 . . . Melee 1 | . . . . . . . . . . 1 . 1 Uniques/NPCs Destroyed . | . . . . . . . . . . . . . Combat | -11 -10 -10 -10 -8 -8 -8 -8 -6 -6 -5 -5 -5 -------- Run | Yrd Mat Min Sub Mat Sto Gar Rec Fac DSF Fac Gar Fac Hostile Shots Fired 624 | . 69 51 1 41 16 68 14 . 43 58 152 111 Missed 162 | . 12 16 . 13 4 18 2 . 9 13 45 30 Hits 462 | . 57 35 1 28 12 50 12 . 34 45 107 81 Melee 10 | . . 3 . . . . . . . . . 7 Projectile 452 | . 57 32 1 28 12 50 12 . 34 45 107 74 AOE 9 | . . 4 . . . . . . . 2 . 3 Critical Strikes 21 | . 1 1 . . 1 3 2 . 1 3 5 4 Damage Taken 9067 | . 543 806 75 511 195 767 231 . 715 1053 2215 1956 Core 1506 | . 68 119 31 57 61 107 42 . 15 58 270 678 Absorbed by Shields . | . . . . . . . . . . . . . Redirected to Shielding 295 | . . . . . . 101 . . 41 64 89 . Ignored by Resistances 18 | . . . . . . . . . . . 18 . Regen/Repaired (Parts) 21 | . . . . 21 . . . . . . . . Core Remaining (%) 65 | 100 . . 12 . . . 51 . 98 . . . Volleys Fired 422 | 12 71 46 12 52 15 56 19 . 25 39 65 10 Largest 3 | 2 2 2 2 3 3 3 3 . 3 3 3 2 Hottest 270 | 70 130 98 100 198 149 183 183 . 203 211 270 118 Shots Fired 844 | 24 130 58 14 111 41 143 46 . 48 84 131 14 Gun 533 | 24 92 16 4 37 39 140 46 . 34 71 25 5 Cannon 218 | . 27 21 . 53 2 . . . 9 7 95 4 Launcher 37 | . . 21 9 4 . 1 . . 1 . 1 . Special 56 | . 11 . 1 17 . 2 . . 4 6 10 5 Kinetic 250 | 12 66 15 . 59 15 39 . . 9 11 20 4 Thermal 515 | 12 64 19 5 48 26 101 46 . 25 64 100 5 Explosive 37 | . . 21 9 4 . 1 . . 1 . 1 . Electromagnetic 15 | . . 3 . . . . . . 9 3 . . Robot Hit Streak 18 | 5 8 7 . 7 12 10 16 . 10 18 10 9 Robot Miss Streak 6 | 3 6 3 . 5 2 4 3 . 3 2 3 1 Penetration Max 1 | . . . . . . . . . . . 1 . Secondary Targets 4 | . . . . 1 . 3 . . . . . . Max Gunslinging Chain 1 | . . . . 1 . 1 . . . . . . Shots Hit Robots 526 | 14 68 34 . 55 38 72 50 . 31 67 79 18 Core Hits 240 | 3 30 28 2 31 13 38 11 . 14 27 40 3 Critical Kills 5 | . . . . . 1 1 . . . . 2 1 Critical Parts Destroyed 3 | . . . . 2 . . . . . 1 . . Critical Strikes 22 | 1 . . . 2 3 6 3 . 3 1 2 1 Burn 14 | 1 . . . . 2 5 3 . 3 . . . Meltdown 2 | . . . . . . . . . . . 2 . Destroy 4 | . . . . 2 1 1 . . . . . . Smash 2 | . . . . . . . . . . 1 . 1 Melee Attacks 252 | . 3 . . 1 19 9 17 . . 8 185 10 Impact 208 | . 3 . . 1 7 9 . . . 8 174 6 Slashing . | . . . . . . . . . . . . . Piercing . | . . . . . . . . . . . . . Sneak Attacks 39 | . . . . . 12 . 16 . . . 11 . Combat Hostiles . | . . . . . . . . . . . . . Follow-up Attacks . | . . . . . . . . . . . . . Damage Inflicted 12097 | 142 898 1336 175 1433 480 1807 645 . 643 1408 2781 349 Guns 5855 | 142 587 188 . 303 477 1521 645 . 469 1043 389 91 Cannons 3211 | . 287 220 . 597 . . . . 72 157 1768 110 Explosions 2520 | . . 928 175 405 . 286 . . 102 . 624 . Melee 327 | . . . . . . . . . . 179 . 148 Ramming 40 | . . . . 8 3 . . . . 29 . . Kinetic 2288 | 53 434 181 . 486 137 436 . . 77 93 300 91 Thermal 6834 | 89 464 248 . 534 340 1085 645 . 392 1070 1857 110 Explosive 2474 | . . 882 175 405 . 286 . . 102 . 624 . Electromagnetic 134 | . . 25 . . . . . . 72 37 . . Impact 327 | . . . . . . . . . . 179 . 148 Slashing . | . . . . . . . . . . . . . Piercing . | . . . . . . . . . . . . . Highest Corruption 9 | . . . . . . 2 4 . . 3 7 9 Average Corruption 4 | . . . . . . 1 3 . . 2 4 7 Corruption Purged . | . . . . . . . . . . . . . Corruption Blocked . | . . . . . . . . . . . . . Effects 160 | . . . . . . 11 27 . . . 111 11 Message Errors 46 | . . . . . . 3 10 . . . 29 4 Matter Fused 37 | . . . . . . 3 3 . . . 29 2 Heat Flow Errors 14 | . . . . . . 1 1 . . . 12 . Energy Discharges 19 | . . . . . . . 1 . . . 17 1 Parts Rejected 3 | . . . . . . . . . . . 2 1 Parts Fused 3 | . . . . . . 1 2 . . . . . Data Loss (minor) 16 | . . . . . . 1 5 . . . 9 1 Data Loss (major) 8 | . . . . . . . 2 . . . 5 1 Misfires 8 | . . . . . . . 1 . . . 7 . Alerts 3 | . . . . . . 1 . . . . 1 1 Weapon Failures 3 | . . . . . . 1 2 . . . . . Overload Shots . | . . . . . . . . . . . . . Overflow Damage 248 | . 1 70 . 17 . . . . . 107 53 . Projectiles 80 | . 1 4 . . . . . . . 61 14 . Explosions 122 | . . 66 . 17 . . . . . . 39 . Melee 46 | . . . . . . . . . . 46 . . Knockbacks 7 | . . . . 1 . . . . . 4 . 2 Impact 5 | . . . . . . . . . . 4 . 1 Kinetic 1 | . . . . 1 . . . . . . . . Secondary 1 | . . . . . . . . . . . . 1 Self-Inflicted Damage 488 | . . 191 50 55 . 21 . . . . 171 . Shots 12 | . . 5 2 2 . 1 . . . . 2 . Rammed . | . . . . . . . . . . . . . Targets Rammed 3 | . . . . 1 1 . . . . 1 . . Kicked 3 | . . . . 1 1 . . . . 1 . . Crushed . | . . . . . . . . . . . . . Highest Temperature 423 | 40 330 203 . 288 225 282 248 . 3 30 423 84 Average Temperature 78 | 19 57 67 . 92 86 96 78 . 2 17 96 42 Received Heat Transfer 1998 | . 135 146 . 225 45 306 27 . 9 327 567 211 Effects 2 | . . . . . . . . . . . 2 . Shutdowns 1 | . . . . . . . . . . . 1 . Short Circuit 1 | . . . . . . . . . . . 1 . Siege Activations . | . . . . . . . . . . . . . Martial Activations . | . . . . . . . . . . . . . Shielding Activations . | . . . . . . . . . . . . . Robots Disrupted . | . . . . . . . . . . . . . Combat Hostiles . | . . . . . . . . . . . . . Robots Corrupted 1 | . . . . . . . . . . 1 . . Combat Hostiles . | . . . . . . . . . . . . . Parts Fried 1 | . . . . . . . . . . 1 . . Impact Corruptions 2 | . . . . . . . . . . 2 . . Robots Melted 3 | . . . . . 1 . . . . . 2 . Combat Hostiles 3 | . . . . . 1 . . . . . 2 . Parts Melted 28 | . . . . 1 3 8 4 . . 6 6 . Heat Transferred 13160 | 333 1123 420 . 1027 777 2275 1406 . 925 1926 2798 150 Parts Sabotaged 5 | . . . . . . . . . . . . 5 Parts Stolen . | . . . . . . . . . . . . . Parts Stripped . | . . . . . . . . . . . . . Power Chain Reactions 1 | . . 1 . . . . . . . . . . Alert | -11 -10 -10 -10 -8 -8 -8 -8 -6 -6 -5 -5 -5 ------- Run | Yrd Mat Min Sub Mat Sto Gar Rec Fac DSF Fac Gar Fac Maximum Alert Level 5 | . . . . 1 2 4 2 . 1 . 5 5 Low Security (%) 47 | 100 100 100 . 78 81 . . 100 94 100 9 . Level 1 9 | . . . . 21 14 6 41 . 6 . 7 . Level 2 11 | . . . . . 4 5 58 . . . 15 . Level 3 7 | . . . . . . 56 . . . . 7 . Level 4 8 | . . . . . . 31 . . . . 16 . Level 5 14 | . . . . . . . . . . . 43 11 High Security 2 | . . . . . . . . . . . . 88 Max Security . | . . . . . . . . . . . . . Sterilizations 1 | . . . . . . . . . 1 . . . Peak Influence 3426 | 5 127 107 . 245 415 1297 583 111 200 105 3426 1881 Initial 1798 | . . 19 . . 90 254 583 106 77 105 . 1798 Average 683 | . 46 35 . 102 110 962 415 108 110 57 1469 1833 Influence Increases 7993 | 10 454 495 . 551 623 1253 145 5 273 226 3616 342 Destroy 0b10 Robot/C 2840 | . 240 240 . 300 280 700 100 . 220 160 520 80 Destroy 0b10 Robot/NC 115 | 10 25 20 . 25 15 . . . . 5 . 15 Destroy Leader 440 | . 68 50 . 66 104 30 . . 30 20 60 12 Allied During Kill 613 | . . 15 . . 172 224 12 . 18 . 141 31 Successful Hack 99 | . 20 . . 16 18 . 31 5 . 3 6 . Disable Machine 240 | . 45 15 . 75 15 . . . . . 60 30 Anti-Garrison Action 2550 | . . . . . . 250 . . . . 2300 . Destroy Structure 781 | . 11 125 . 39 19 19 2 . 5 8 499 54 Lose Combat Pursuer 315 | . 45 30 . 30 . 30 . . . 30 30 120 Influence Decreases 6163 | 10 404 488 57 337 446 347 1188 148 184 426 190 1938 Entered New Map 2941 | . . 31 30 . 124 137 714 148 34 95 . 1628 Time Decay 2183 | 10 404 377 27 297 302 . 464 . . 282 . 20 Lost Part 509 | . . 60 . 40 . 30 . . 30 49 130 170 Lost Ally 530 | . . 20 . . 20 180 10 . 120 . 60 120 Squads Dispatched 23 | . 4 . . 3 4 . . . 1 2 . 9 Investigation 4 | . 2 . . 1 . . . . . 1 . . Extermination 1 | . . . . . . . . . . 1 . . Reinforcement 4 | . 2 . . . 1 . . . 1 . . . Assault 8 | . . . . . . . . . . . . 8 Garrison 6 | . . . . 2 3 . . . . . . 1 Intercept . | . . . . . . . . . . . . . Searches Triggered . | . . . . . . . . . . . . . Construction Impeded . | . . . . . . . . . . . . . Haulers Reinforced . | . . . . . . . . . . . . . Active Scanning Responses . | . . . . . . . . . . . . . Cargo Convoy Interrupts . | . . . . . . . . . . . . . Alert ID Control Effect 2 | . . . . . . . . . . . . 2 Stealth | -11 -10 -10 -10 -8 -8 -8 -8 -6 -6 -5 -5 -5 --------- Run | Yrd Mat Min Sub Mat Sto Gar Rec Fac DSF Fac Gar Fac Distress Signals 13 | . 2 . . 5 2 . . . . 2 . 2 Communications Jammed . | . . . . . . . . . . . . . Distress Signals . | . . . . . . . . . . . . . Times Spotted 224 | . 26 19 1 23 11 44 8 . 12 15 32 33 Peak Tracking Total 15 | . 4 3 1 6 2 8 3 . 3 5 5 15 Tactical Retreats 15 | . 2 2 . 2 . 2 . . . 1 2 4 Traps | -11 -10 -10 -10 -8 -8 -8 -8 -6 -6 -5 -5 -5 ------- Run | Yrd Mat Min Sub Mat Sto Gar Rec Fac DSF Fac Gar Fac Traps Triggered 8 | . 1 . . . 1 . . . . . 6 . Indirectly . | . . . . . . . . . . . . . Trap Hack Attempts . | . . . . . . . . . . . . . Triggered . | . . . . . . . . . . . . . Disarmed . | . . . . . . . . . . . . . Reprogrammed . | . . . . . . . . . . . . . Reused . | . . . . . . . . . . . . . Traps Extracted . | . . . . . . . . . . . . . Installed . | . . . . . . . . . . . . . Triggered . | . . . . . . . . . . . . . Machines | -11 -10 -10 -10 -8 -8 -8 -8 -6 -6 -5 -5 -5 ---------- Run | Yrd Mat Min Sub Mat Sto Gar Rec Fac DSF Fac Gar Fac Machines Disabled 29 | . 3 1 1 5 1 5 . . . . 11 2 Max in Single Turn 2 | . 1 1 1 1 . 1 . . . . 2 . Garrison Relay 9 | . . . . . . 5 . . . . 4 . Phase Generator 1 | . . . . . . . . . . . 1 . Machines Repaired . | . . . . . . . . . . . . . Machines Dismantled . | . . . . . . . . . . . . . Machines Sabotaged . | . . . . . . . . . . . . . Overloaded Fab Kills . | . . . . . . . . . . . . . Hacking | -11 -10 -10 -10 -8 -8 -8 -8 -6 -6 -5 -5 -5 --------- Run | Yrd Mat Min Sub Mat Sto Gar Rec Fac DSF Fac Gar Fac Machines Accessed 33 | . 5 . 2 5 6 1 9 1 . 2 2 . Terminals 22 | . 5 . . 3 5 1 5 1 . . 2 . Fabricators 1 | . . . . . . . . . . 1 . . Repair Stations 1 | . . . . 1 . . . . . . . . Recycling Units 4 | . . . . . . . 4 . . . . . Scanalyzers 1 | . . . . 1 . . . . . . . . Garrison Access 2 | . . . . . 1 . . . . 1 . . Total Hacks 80 | . 17 . 3 18 13 1 19 1 . 5 3 . Successful 40 | . 7 . 3 8 7 . 10 1 . 3 1 . Failed 38 | . 9 . . 10 6 1 8 . . 2 2 . Catastrophic 6 | . 2 . . 1 1 1 1 . . . . . Database Lockouts 2 | . 1 . . . . . 1 . . . . . Manual 46 | . 11 . . 9 9 . 17 . . . . . Terminals 60 | . 17 . . 11 12 1 15 1 . . 3 . Fabricators 4 | . . . . . . . . . . 4 . . Repair Stations 4 | . . . . 4 . . . . . . . . Recycling Units 4 | . . . . . . . 4 . . . . . Scanalyzers 3 | . . . . 3 . . . . . . . . Garrison Access 2 | . . . . . 1 . . . . 1 . . Terminal Hacks 21 | . 7 . 3 2 3 . 4 1 . . 1 . Record 2 | . . . 2 . . . . . . . . . Part Schematic 4 | . 1 . . 1 . . 2 . . . . . Robot Analysis 2 | . 2 . . . . . . . . . . . Open Door 2 | . . . . . 1 . . . . . 1 . Open DSF 1 | . . . . . . . . 1 . . . . Branch Access Points 4 | . 1 . . 1 1 . 1 . . . . . Emergency Access Points 1 | . 1 . . . . . . . . . . . Alert Level 1 | . . . . . . . 1 . . . . . Locate Traps 2 | . 1 . . . 1 . . . . . . . Zone Layout 1 | . 1 . . . . . . . . . . . Proto ID Catalog 1 | . . . 1 . . . . . . . . . Fabricator Hacks 2 | . . . . . . . . . . 2 . . Load Schematic 1 | . . . . . . . . . . 1 . . Build 1 | . . . . . . . . . . 1 . . Repair Station Hacks 2 | . . . . 2 . . . . . . . . Scan Component 1 | . . . . 1 . . . . . . . . Repair 1 | . . . . 1 . . . . . . . . Recycling Unit Hacks 4 | . . . . . . . 4 . . . . . Report Inventory 4 | . . . . . . . 4 . . . . . Scanalyzer 3 | . . . . 3 . . . . . . . . Insert Component 2 | . . . . 2 . . . . . . . . Retrieve Study 1 | . . . . 1 . . . . . . . . Garrison Access Hacks 2 | . . . . . 1 . . . . 1 . . Unlock Access 2 | . . . . . 1 . . . . 1 . . Unauthorized Hacks 6 | . . . . 1 3 . 2 . . . . . Terminals 6 | . . . . 1 3 . 2 . . . . . Botnet 6 | . . . . 1 3 . 2 . . . . . Fabricators . | . . . . . . . . . . . . . Repair Stations . | . . . . . . . . . . . . . Recycling Units . | . . . . . . . . . . . . . Scanalyzers . | . . . . . . . . . . . . . Garrison Access . | . . . . . . . . . . . . . Data Cores Recovered . | . . . . . . . . . . . . . Used . | . . . . . . . . . . . . . Hacking Detections 22 | . 5 . . 5 4 1 5 . . 1 1 . Full Trace Events 4 | . 2 . . 1 . . . . . 1 . . Feedback Events . | . . . . . . . . . . . . . Feedback Blocked . | . . . . . . . . . . . . . Robot Schematics Acquired . | . . . . . . . . . . . . . Robots Built . | . . . . . . . . . . . . . Authchips . | . . . . . . . . . . . . . Time . | . . . . . . . . . . . . . Total Robot Build Rating . | . . . . . . . . . . . . . Part Schematics Acquired 4 | . 1 . . 1 . . 2 . . . . . Parts Built 1 | . . . . . . . . . . 1 . . Authchips . | . . . . . . . . . . . . . Time 73 | . . . . . . . . . . 73 . . Total Part Build Rating 3 | . . . . . . . . . . 3 . . Part Studies Acquired 1 | . . . . 1 . . . . . . . . Parts Repaired 1 | . . . . 1 . . . . . . . . Time 32 | . . . . 32 . . . . . . . . Parts Recycled . | . . . . . . . . . . . . . Recycled Matter . | . . . . . . . . . . . . . Retrieved Matter . | . . . . . . . . . . . . . Retrieved Components . | . . . . . . . . . . . . . Parts Scanalyzed . | . . . . . . . . . . . . . Part Schematics Acquired . | . . . . . . . . . . . . . Parts Damaged . | . . . . . . . . . . . . . Bothacking | -11 -10 -10 -10 -8 -8 -8 -8 -6 -6 -5 -5 -5 ------------ Run | Yrd Mat Min Sub Mat Sto Gar Rec Fac DSF Fac Gar Fac Used RIF Installer 2 | . . . . . . 1 . . . . 1 . Alert ID Control 1 | . . . . . . . . . . . 1 . Robots Hacked 21 | . . . . . 2 1 2 . 3 4 5 4 Non-combat 6 | . . . . . 2 . 1 . . 3 . . Combat 15 | . . . . . . 1 1 . 3 1 5 4 Robot Hacks Applied 23 | . . . . . 2 1 2 . 3 4 5 6 parse_system 1 | . . . . . . . 1 . . . . . no_distress 2 | . . . . . 2 . . . . . . . ignore_parts 2 | . . . . . . . . . . 2 . . mark_security 1 | . . . . . . . . . . 1 . . overload_power 2 | . . . . . . . . . 1 1 . . amplify_resonance 2 | . . . . . . . . . . . . 2 wipe_record 1 | . . . . . . . . . . . . 1 reboot_system 1 | . . . . . . . 1 . . . . . go_dormant 2 | . . . . . . 1 . . 1 . . . overwrite_iff 1 | . . . . . . . . . 1 . . . formatsys_high 8 | . . . . . . . . . . . 5 3 Relay Couplers Released 37 | . . . . . . 22 . . . . 15 . Machine Destruction 37 | . . . . . . 22 . . . . 15 . Attached 16 | . . . . . . 1 . 1 1 . 9 4 Fabnet Peak Effective % . | . . . . . . . . . . . . . Robots Rewired 16 | . . . . . 3 . 9 . . . 4 . Allies Hacked 4 | . . . . . . 1 . . . . 2 1 Hacks Repelled . | . . . . . . . . . . . . . Allies | -11 -10 -10 -10 -8 -8 -8 -8 -6 -6 -5 -5 -5 -------- Run | Yrd Mat Min Sub Mat Sto Gar Rec Fac DSF Fac Gar Fac Total Allies 36 | . . 3 . . 10 . 9 . 1 . 11 2 Largest Group 10 | . . 3 2 1 10 9 9 8 8 . 8 5 Highest-Rated Group 549 | . . 40 32 16 173 157 135 108 108 . 549 292 Highest-Rated Ally 119 | . . 16 16 16 29 29 27 18 29 . 119 119 Total Orders 9 | . . 2 . 1 . 3 . . 3 . . . STAY 4 | . . 1 . 1 . 1 . . 1 . . . FOLLOW 4 | . . 1 . . . 2 . . 1 . . . TUNNEL 1 | . . . . . . . . . 1 . . . Ally Attacks 255 | . . 25 7 2 43 85 3 . 31 . 24 35 Total Damage 4652 | . . 227 108 32 658 1014 78 . 518 . 975 1042 Kills 49 | . . 5 1 . 9 14 1 . 4 . 8 7 Allies Corrupted 2 | . . . . . . . . . . . 2 . Allies Melted . | . . . . . . . . . . . . . Intel | -11 -10 -10 -10 -8 -8 -8 -8 -6 -6 -5 -5 -5 ------- Run | Yrd Mat Min Sub Mat Sto Gar Rec Fac DSF Fac Gar Fac Active Infowar (turns) 6414 | . 1601 536 398 1236 660 462 699 15 23 612 2 170 Optics 2161 | . . . . 1043 660 458 . . . . . . Sensors 4487 | . 444 536 398 1225 359 4 699 15 23 612 2 170 Terrain 530 | . 530 . . . . . . . . . . . Seismic 627 | . 627 . . . . . . . . . . . Robot Analysis Total 2 | . 2 . . . . . . . . . . . Derelict Logs Recovered 1 | . . 1 . . . . . . . . . . Drone Launches . | . . . . . . . . . . . . . Drone Recoveries . | . . . . . . . . . . . . . Exploration | -11 -10 -10 -10 -8 -8 -8 -8 -6 -6 -5 -5 -5 ------------- Run | Yrd Mat Min Sub Mat Sto Gar Rec Fac DSF Fac Gar Fac Turns Passed 13733 | 121 1605 1659 482 1236 660 1111 1172 15 250 677 4396 349 Spaces Moved 6698 | 57 801 949 347 558 242 625 684 8 103 231 1900 193 Core 89 | 8 . . . . . . . . . . . 81 Treads . | . . . . . . . . . . . . . Legs 6609 | 49 801 949 347 558 242 625 684 8 103 231 1900 112 Wheels . | . . . . . . . . . . . . . Hover . | . . . . . . . . . . . . . Flight . | . . . . . . . . . . . . . Fastest Speed 50 | 50 120 120 120 117 117 125 125 126 123 123 123 50 Average Speed 144 | 110 125 152 122 123 121 125 126 126 125 142 179 132 Slowest Speed 360 | 120 190 260 190 130 187 125 130 126 126 195 190 360 Overloaded Moves . | . . . . . . . . . . . . . Propulsion Burnouts . | . . . . . . . . . . . . . Robots Hopped . | . . . . . . . . . . . . . Potential Cave-ins . | . . . . . . . . . . . . . Cave-ins Triggered . | . . . . . . . . . . . . . Exploration Rate (%) 47 | 4 89 98 27 37 39 71 90 1 51 5 99 6 Regions Visited 12 Branch Regions 4 Pre-discovered Areas 2 | . . 1 1 . . . . . . . . . Known Exits Taken 5 | . 1 . . 1 1 . . 1 . 1 . . Unknown Exits Taken 4 | 1 . 1 1 . . . 1 . . . . . Scrap Searched 1 | . . 1 . . . . . . . . . . Spaces Dug 184 | . 10 5 3 23 4 3 . . . 3 131 2 Terrain Destroyed 510 | . 10 188 44 35 5 5 . . 5 4 212 2 Melee 143 | . 1 . . 1 4 3 . . . 3 129 2 Projectile 26 | . 9 2 . 8 1 1 . . . 1 4 . AOE 341 | . . 186 44 26 . 1 . . 5 . 79 . Terrain Rammed . | . . . . . . . . . . . . . Walls Destroyed . | . . . . . . . . . . . . . Machines Disabled . | . . . . . . . . . . . . . Actions | -11 -10 -10 -10 -8 -8 -8 -8 -6 -6 -5 -5 -5 --------- Run | Yrd Mat Min Sub Mat Sto Gar Rec Fac DSF Fac Gar Fac Total 9507 | 94 1254 1105 386 981 561 821 934 13 182 488 2427 261 Wait 1604 | 4 326 63 10 308 247 89 195 2 28 177 141 14 Move 6685 | 56 800 948 346 557 241 623 683 7 102 231 1898 193 Hop . | . . . . . . . . . . . . . Pick Up 143 | 15 15 13 2 27 8 10 2 . 8 12 23 8 Fast Attach 27 | . 2 2 1 2 3 1 1 . 3 . 12 . Attach 85 | 5 6 10 2 9 . 2 . 4 4 10 17 16 Detach 9 | . 3 1 . 1 . . . . 2 . 1 1 Swap 149 | . 15 12 8 14 15 20 14 . 5 8 32 6 Drop 99 | 2 13 10 5 9 12 10 3 . 5 2 25 3 Fire 422 | 12 71 46 12 52 15 56 19 . 25 39 65 10 Melee 252 | . 3 . . 1 19 9 17 . . 8 185 10 Ram . | . . . . . . . . . . . . . Kick 3 | . . . . 1 1 . . . . 1 . . Crush . | . . . . . . . . . . . . . Escape Stasis 25 | . . . . . . . . . . . 25 . Rewire 4 | . . . . . . 1 . . . . 3 . Trap . | . . . . . . . . . . . . . Miscellaneous . | . . . . . . . . . . . . . Route ------- -11/Scrapyard -10/Materials (discovered 3 exits: [*Mat x2] / *Min) -10/Mines (discovered 3 exits: [*Mat x2] / *Sub) -10/Subcaves -8/Materials (discovered 2 exits: [*Fac] / *Sto) -8/Storage (discovered 2 exits: Rec / Gar) -8/Garrison (discovered 3 exits: *Rec x3) -8/Recycling -6/Factory -6/DSF -5/Factory -5/Garrison (discovered 3 exits: [*Fac x3]) -5/Factory History --------- Turn | Location | Event 10 | -11/Scrapyard | Discovered new exit (range 16) 122 | -11/Scrapyard | Entered Materials 337 | -10/Materials | Build established: Mutant 394 | -10/Materials | Discovered new exit (range 15) 429 | -10/Materials | Discovered new exit (range 15) 1011 | -10/Materials | Identified exit to Mines 1015 | -10/Materials | Central database locked down 1192 | -10/Materials | Discovered new exit (range 16) 1727 | -10/Materials | Entered Mines 1807 | -10/Mines | Found a hidden stash of uninstalled traps 1894 | -10/Mines | Discovered new exit (range 10) 1909 | -10/Mines | Discovered new exit (range 9) 1929 | -10/Mines | Assembled infested the area 2090 | -10/Mines | Found a damaged Exp. Sensor Array with a note attached 2157 | -10/Mines | Learned Materials terminal intel 2189 | -10/Mines | Core integrity fell below 50% 2256 | -10/Mines | Learned location of Storage (-8) 2517 | -10/Mines | Lost 4 parts (1p1n2w) 2654 | -10/Mines | Found Prototype Device 2753 | -10/Mines | Assisted by bots powering up and referring to "LRC-V3" 3023 | -10/Mines | Identified Exp. Sensor Array 3147 | -10/Mines | Discovered new exit (range 8) 3193 | -10/Mines | Build established: Scavenger-Mutant 3386 | -10/Mines | Entered Subcaves 3386 | -10/Subcaves | Accompanied by 2 allies 3446 | -10/Subcaves | Core integrity fell below 20% 3749 | -10/Subcaves | Visited 4L-MR0's lab 3776 | -10/Subcaves | Found Cargo Legs 3778 | -10/Subcaves | Attached Cargo Legs, gained temporary slots: Utility x2 3833 | -10/Subcaves | Discovered new exit (range 10) 3846 | -10/Subcaves | Visited Clippyterm 3849 | -10/Subcaves | Learned location of Deep Caves (-7) 3868 | -10/Subcaves | Entered Materials 3868 | -8/Materials | Accompanied by 1 ally 3868 | -8/Materials | Evolved 4 slots: Propulsion x1, Utility x2, Weapon x1 3869 | -8/Materials | Loaded intel: 12 terminal locations 3921 | -8/Materials | Identified exit to Storage 4112 | -8/Materials | Repaired Mni. Grenade Launcher 4357 | -8/Materials | Build established: Scavenger-Skirmisher 4737 | -8/Materials | Build established: Skirmisher 4846 | -8/Materials | Discovered new exit (range 3) 4947 | -8/Materials | Garrison activated, responded to threat 5104 | -8/Materials | Entered Storage 5566 | -8/Storage | Assisted by bots powering up and referring to "LRC-V3" 5645 | -8/Storage | Identified exit to Garrison 5701 | -8/Storage | Identified exit to Recycling 5764 | -8/Storage | Entered Garrison 5764 | -8/Garrison | Accompanied by 9 allies 5807 | -8/Garrison | Triggered checkpoint 5841 | -8/Garrison | Garrison Relay disabled 5871 | -8/Garrison | Build established: Commander-Bomber 5902 | -8/Garrison | Triggered checkpoint 5950 | -8/Garrison | Destroyed 8 combat bots 5952 | -8/Garrison | Triggered checkpoint 5958 | -8/Garrison | Lost 4 allies 5992 | -8/Garrison | Triggered checkpoint 6025 | -8/Garrison | Garrison Relay disabled 6094 | -8/Garrison | Discovered exit to Recycling (range 17) 6386 | -8/Garrison | Discovered exit to Recycling (range 8) 6439 | -8/Garrison | Triggered checkpoint 6510 | -8/Garrison | Garrison Relay disabled 6528 | -8/Garrison | Garrison Relay disabled 6706 | -8/Garrison | Discovered exit to Recycling (range 10) 6746 | -8/Garrison | Installed Relay Interface Framework 6790 | -8/Garrison | Triggered checkpoint 6824 | -8/Garrison | Garrison Relay disabled 6875 | -8/Garrison | Entered Recycling 6876 | -8/Recycling | Met a Zionite searching for Scraptown 7718 | -8/Recycling | Discovered new exit (range 15) 7766 | -8/Recycling | Build established: Bothacker-Mutant 8047 | -8/Recycling | Entered Factory 8047 | -6/Factory | Accompanied by 8 allies 8047 | -6/Factory | Evolved 4 slots: Propulsion x1, Utility x3 8054 | -6/Factory | Identified exit to DSF 8062 | -6/Factory | Entered DSF 8062 | -6/DSF | Accompanied by 8 allies 8103 | -6/DSF | Additional patrols routed to DSF 8134 | -6/DSF | Discovered new exit (range 15) 8205 | -6/DSF | Lost 8 allies 8274 | -6/DSF | Sterilization system engaged 8294 | -6/DSF | Ambient heat levels rising (+10) 8309 | -6/DSF | Ambient heat levels rising (+10) 8312 | -6/DSF | Entered Factory 8312 | -5/Factory | Evolved 2 slots: Power x1, Utility x1 8462 | -5/Factory | Fabricated Hacking Suite (x1) 8561 | -5/Factory | Build established: Bothacker-Tank 8683 | -5/Factory | Lost 3 parts (1n1u1w) 8863 | -5/Factory | Build established: Bothacker-Mutant 8957 | -5/Factory | Lost 4 parts (2u2w) 8988 | -5/Factory | Identified exit to Garrison 8989 | -5/Factory | Entered Garrison 8989 | -5/Garrison | Warlord forces raided the area 9073 | -5/Garrison | P-70 Sage assimilated allied 91-UDD(g) 9073 | -5/Garrison | Spotted 91-UDD(g) 9251 | -5/Garrison | Triggered checkpoint 9290 | -5/Garrison | Garrison Relay disabled 9311 | -5/Garrison | Warlord forces retreated 9365 | -5/Garrison | Triggered checkpoint 9372 | -5/Garrison | Spotted B-75 Beast 9402 | -5/Garrison | Destroyed B-75 Beast 9422 | -5/Garrison | Lost 3 parts (2u1w) 9482 | -5/Garrison | Lost 6 parts (2p3n1w) 9738 | -5/Garrison | Triggered checkpoint 9920 | -5/Garrison | Triggered checkpoint 9952 | -5/Garrison | Discovered new exit (range 15) 10082 | -5/Garrison | Build established: Scavenger-Tank 10121 | -5/Garrison | Triggered checkpoint 10176 | -5/Garrison | Found embedded Infiltrators 10209 | -5/Garrison | Discovered new exit (range 10) 10276 | -5/Garrison | Triggered checkpoint 10329 | -5/Garrison | Garrison Relay disabled 10455 | -5/Garrison | Triggered checkpoint 10543 | -5/Garrison | Triggered checkpoint 10567 | -5/Garrison | Discovered new exit (range 13) 10635 | -5/Garrison | Garrison Relay disabled 10924 | -5/Garrison | Build established: Bothacker-Mutant 11988 | -5/Garrison | Rewired Executioner 12008 | -5/Garrison | Rewired Executioner 13313 | -5/Garrison | Expanded RIF knowledge: Alert ID Control 13334 | -5/Garrison | Phase Generator disabled 13334 | -5/Garrison | Destroyed Executioner 13360 | -5/Garrison | Murdered 3 allies 13385 | -5/Garrison | Entered Factory 13385 | -5/Factory | Accompanied by 4 allies 13426 | -5/Factory | High security lockdown imminent 13506 | -5/Factory | High security lockdown engaged 13597 | -5/Factory | Lost 4 parts (1p1u2w) 13639 | -5/Factory | Garrison activated, responded to threat 13663 | -5/Factory | Core integrity fell below 50% 13668 | -5/Factory | Core integrity fell below 20% 13703 | -5/Factory | Lost 12 parts (2p3n2u5w) 13703 | -5/Factory | Lost 5 allies 13734 | -5/Factory | Destroyed by X-72 Disruptor with Arc Projector Last Messages --------------- 13672_ Penetrated by Slug. 13672_ Relay Coupler [Hunter] destroyed. 13673_ Acquired 12 matter. 13678_ The unstable cave ceiling collapses. 13678_ Adv. Heat Sink crushed. 13681_ Acquired Unknown Device. 13713_ Acquired Prototype Energy Gun. 13715_ System corrupted: IFF burst signal emitted. 13717_ Identified Hvy. Gatling Laser. 13718_ Identified Imp. Cooling System. 13722_ G-67 Veteran knocked back. 13723_ Critical hit (Burn: +50). 13728_ G-67 Veteran suffers critical hit (Smash). 13728_ G-67 Veteran destroyed. 13731_ Dropped Angular Momentum Engine. 13733_ Dropped Imp. Cooling System. 13734_ Relay Coupler [NC] destroyed. [Achievement: Achiever] Map ----- +----------------------------------------------------+ | ???????????????????????????????????? | | ???????????????????????????????????? | | ???????????????????????????????????? | | ???????????????????????????????????? | | ???????????????????????????????????? | | ???????????????????????????????????? | | ???????????????????????????????????? | | ???????????????????????????????????? | | ???????????????????????????????????? | | ???????????????????????????????????? | | ??????????? ??????????????????????? | | ??????????? ??????????????????????? | | ??????????? ??????????????????????? | | ??????????? ??????????????????????? | | ??????????? ??????????????????????? | | ??????????? ??????????????????????? | | ??????????? ??????????????????????? | | ??????????# ??????????????????????? | | ??????????# ??????????????????????? | | ??????????# p??????????????????????? | | ?????????? ??????????????????????? | | ?##########C#??????????????????????? | | ?# # #??????????????????????? | | ?#""" # #??????????????????????? | | ?#""" ! *# #??????????????????????? | | ?#""" *#@#####??????????????????? | | ?# =+% +??????????????????? | | ?#""" # ##??????????????????? | | ?#""" # #???????????????????? | | ?#""" # #???????????????????? | | ?# # #???????????????????? | | ?########/# #???????????????????? | | ######### #???????????????????? | | # # #???????????????????? | | # """ # ##??????????????????? | | # """ # x #??????????????????? | | # """ + #?????????#????????? | | # # #???????? #?????"??? | | # """ # ######### #### ???? | | # """ # "??? | | # """ # "??? | | # + "??? | | # """ # ?? | | # """ # ?? | | # """ #####+#####+##########?????? | | # ## #????????????? | | # """ ## ##########+### | | # """ ## """""" | ## | | # """ ## """""" #" | | ??? ?# """""" ## """ """ | +----------------------------------------------------+ Best States ------------- Heat Dissipation 78 Coolant Potential 115 Energy Generation 33 Energy Capacity 530 Matter Stores 300 Matter Capacity 300 Sight Range 18 Robot Scan Range 20 Terrain Scan Range 16 Terrain Scan Density 10 Additional Mass Support 6 EM Shielding 2 Armor Coverage 750 Resistance: KI 20 Resistance: TH 15 Propulsion Shielding 66 Utility Shielding 66 Evasion (%) 55 Launcher Accuracy 20 Offensive Hacking 10 Relay Coupler Types 6 Relay Coupler Value 109 Authchip Count 2 Item Schematics ----------------- Aluminum Leg | -10/Materials | Hacked Hacking Suite | -8/Materials | Hacked Trap Extractor | -8/Recycling | Hacked Cooling System | -8/Recycling | Hacked Robot Schematics ------------------ None Fabricated ------------ Hacking Suite | x1 | -5/Factory Repaired ---------- Mni. Grenade Launcher | 58% | -8/Materials Studied --------- Aluminum Leg | -8/Materials | Hacked Alien Tech Used ----------------- None Achievements -------------- Achiever Assimilation Complete Backstab Error 47 Factory Defaults I Survived The Infestation Just What I Needed Let Me Out Of Here Mindtrick My Bad Quantum Hacking Satisfying True Hacker Versatile You Will Be Upgraded Challenges ------------ None Game ------ Seed CooledTiamatGreatsword Manual? 0 Play Time 03:16:56 Cumulative 29.4 hours Start 2025.10.29 @ 22:11:34 End 2025.10.31 @ 09:22:36 Sessions 9 Manual Loads 0 Difficulty Rogue Special Mode None Game No. 18 Rogue 18 Adventurer 0 Explorer 0 Win Type - Total 0 Types 0/0/0/0/0/0/0/0/0/0 Lore% 13 Gallery% 27 Achievement% 26 Wizard Run 0 Options --------- Layout 1 ASCII 0 Keyboard 0 Movement Numpad Keybinds 0 Fullscreen 1 Font 24/Smallcaps Map View 50x35 Zoom Use 0% Tactical HUD 1 Map Filters NONE Filters NONE Steam 1 RUN: a3fcb168-ee17-497b-805d-e41cc6444f31